bitfinex/quotes_ETHUSD_20240714
["timestamp","ask_amount","ask_price","bid_price","bid_amount"]
[1720968297421,0.04783346,3193.5,3193.4,5.67476]
[1720968297627,0.04783346,3193.5,3193.4,6.5926675]
[1720968297922,2.02411976,3193.5,3193.4,4.0875075]
[1720968298076,0.04783346,3193.5,3193.4,4.0875075]
[1720968298471,0.04783346,3193.5,3193.4,6.5926675]
[1720968299275,2.02414543,3193.5,3193.4,6.5926675]
[1720968299592,0.04783346,3193.5,3193.4,6.5926675]
[1720968301923,0.53938899,3193.5,3193.4,6.5926675]
[1720968302412,0.49155553,3193.5,3193.4,6.5926675]
[1720968302911,0.53940161,3193.5,3193.4,6.5926675]
[1720968303634,0.53940161,3193.5,3193.4,9.0978275]
[1720968303816,1.9763546,3194.1,3194.0,4.88229]
[1720968304114,0.0328883,3194.4,3194.3,2.50446]
[1720968304413,0.0328883,3194.4,3194.3,4.88206]
[1720968304620,0.0328883,3194.4,3194.3,8.67406]
[1720968304791,0.0328883,3194.4,3194.3,9.791913]
[1720968305413,0.0328883,3194.4,3194.3,7.287453]
[1720968305721,0.0328883,3194.4,3194.3,4.909853]
[1720968306082,0.07861268,3194.4,3194.3,4.909853]
[1720968306279,0.0328883,3194.4,3194.3,4.909853]
[1720968306518,0.07861268,3194.4,3194.3,4.909853]
[1720968306719,0.0328883,3194.4,3194.3,4.909853]
[1720968306893,0.07861268,3194.4,3194.3,4.909853]
[1720968309118,0.07861268,3194.4,3194.3,4.117853]
[1720968309419,0.07861268,3194.4,3194.2,0.792]
[1720968311227,0.07861268,3194.4,3194.0,1.280229]
[1720968311729,3.2498,3194.3,3193.4,6.75418765]
[1720968311931,2.4578,3194.1,3193.4,6.75418765]
[1720968312099,0.04592032,3194.0,3193.4,6.75418765]
[1720968312300,4.42766985,3194.1,3193.3,0.792]
[1720968312712,0.04574299,3194.0,3193.3,0.792]
[1720968314826,0.04574299,3194.0,3193.5,0.792]
[1720968315022,0.04574299,3194.0,3193.7,0.792]
[1720968315337,1.97037036,3194.3,3193.9,0.792]
[1720968315703,0.04566872,3194.2,3193.9,0.792]
[1720968316639,4.46105866,3194.4,3193.9,0.792]
[1720968317143,0.0328883,3194.4,3193.6,3.0]
[1720968317435,2.4578,3194.3,3193.7,1.22592376]
[1720968317644,2.4578,3194.3,3193.6,3.792]
[1720968317828,2.4578,3194.3,3193.6,3.0]
[1720968318542,2.4578,3194.3,3193.6,3.792]
[1720968319123,4.42786865,3194.3,3193.6,3.792]
[1720968319320,0.04525602,3194.2,3193.6,3.792]
[1720968321648,4.42801312,3194.3,3193.6,3.792]
[1720968321840,0.04519612,3194.1,3193.6,3.792]
[1720968322043,0.04526262,3194.2,3193.6,3.792]
[1720968322239,0.04514283,3194.0,3193.6,3.792]
[1720968322421,0.04520272,3194.1,3193.6,3.792]
[1720968322629,2.4578,3194.3,3193.6,3.792]
[1720968322818,0.04514283,3194.0,3193.8,0.792]
[1720968323008,2.4578,3194.3,3193.8,0.792]
[1720968327066,0.0328883,3194.4,3194.0,0.792]
[1720968327741,0.0328883,3194.4,3193.7,2.50486]
[1720968327742,0.0328883,3194.4,3194.2,0.792]
[1720968328566,0.0328883,3194.4,3194.3,0.32966]
[1720968328859,0.0328883,3194.4,3194.3,0.30466]
[1720968333277,0.0328883,3194.4,3194.3,7.63328301]
[1720968334490,0.0328883,3194.4,3194.3,7.57068]
[1720968335997,0.0328883,3194.4,3194.3,10.57068]
[1720968336576,0.0328883,3194.4,3194.3,11.12068]
[1720968337775,0.07844145,3194.4,3194.3,11.12068]
[1720968337983,0.0328883,3194.4,3194.3,11.12068]
[1720968342009,0.0328883,3194.4,3194.3,13.62514]
[1720968345309,10.0,3195.0,3194.9,5.00798]
[1720968345490,10.0,3195.0,3194.9,10.959778]
[1720968345693,10.04592355,3195.0,3194.9,10.959778]
[1720968346008,10.0,3195.0,3194.9,10.959778]
[1720968346319,10.04598385,3195.0,3194.9,10.959778]
[1720968347113,10.04598385,3195.0,3194.9,6.004788]
[1720968347289,10.04598385,3195.0,3194.9,3.0]
[1720968347491,10.04598385,3195.0,3194.8,5.50401]
[1720968349709,10.04598385,3195.0,3194.8,3.0]
[1720968349876,10.0,3195.0,3194.8,2.50404]
[1720968350078,10.0,3195.0,3194.9,3.0]
[1720968350280,10.0,3195.0,3194.9,3.792]
[1720968352200,10.0,3195.0,3194.9,4.421604]
[1720968352406,10.04602421,3195.0,3194.9,4.421604]
[1720968355993,10.37391569,3195.0,3194.9,4.421604]
[1720968356400,10.04602421,3195.0,3194.9,6.925594]
[1720968359387,10.53734663,3195.0,3194.9,6.925594]
[1720968361196,10.53734663,3195.0,3194.9,4.421604]
[1720968361408,10.53734663,3195.0,3194.9,0.792]
[1720968361608,10.53734663,3195.0,3194.9,6.29599]
[1720968361985,10.53734663,3195.0,3194.9,8.79998]
[1720968362383,10.53734663,3195.0,3194.9,8.00798]
[1720968362623,10.53734663,3195.0,3194.9,8.79998]
[1720968362788,10.53734663,3195.0,3194.9,9.679978]
[1720968364389,10.53734663,3195.0,3194.9,12.154778]
[1720968364814,10.49132242,3195.0,3194.9,12.154778]
[1720968365932,10.5373361,3195.0,3194.9,12.154778]
[1720968367802,10.5373361,3195.0,3194.9,15.208768]
[1720968368212,10.49132242,3195.0,3194.9,15.208768]
[1720968368592,10.537352,3195.0,3194.9,15.208768]
[1720968369194,10.537352,3195.0,3194.9,8.887978]
[1720968369412,10.537352,3195.0,3194.9,9.679978]
[1720968369615,10.49132242,3195.0,3194.9,10.229978]
[1720968370031,10.53738508,3195.0,3194.9,10.229978]
[1720968370348,10.53738508,3195.0,3194.9,15.042068]
[1720968370549,10.53738508,3195.0,3194.9,16.927068]
[1720968370845,10.49132242,3195.0,3194.9,16.927068]
[1720968371044,10.53738773,3195.0,3194.9,16.927068]
[1720968373244,10.53738773,3195.0,3194.9,15.042068]
[1720968373627,10.53738773,3195.0,3194.9,16.927068]
[1720968373828,10.49132242,3195.0,3194.9,16.927068]
[1720968374150,10.53738773,3195.0,3194.9,16.927068]
[1720968374531,10.03240437,3195.0,3194.9,16.927068]
[1720968375027,9.24332337,3195.0,3194.9,19.431058]
[1720968375444,9.19725806,3195.0,3194.9,19.431058]
[1720968375633,7.31998474,3195.0,3194.9,19.431058]
[1720968375829,7.27403492,3195.0,3194.9,19.431058]
[1720968376758,6.49228427,3195.0,3194.9,19.431058]
[1720968380174,5.99218427,3195.0,3194.9,19.431058]
[1720968380468,0.49116397,3195.3,3195.2,7.51125]
[1720968380695,0.49116397,3195.3,3195.2,12.604375]
[1720968381000,0.49116397,3195.3,3195.2,23.033267]
[1720968381336,2.3857,3196.2,3196.0,2.50305]
[1720968381532,2.3857,3196.2,3196.1,0.85456682]
[1720968382065,0.49114028,3196.2,3196.1,3.35761682]
[1720968382272,0.49114028,3196.2,3196.1,6.9436835]
[1720968382647,0.49114028,3196.2,3196.1,9.4467335]
[1720968382850,0.49114028,3196.2,3196.1,9.38416668]
[1720968383351,0.49114028,3196.2,3196.1,9.93416668]
[1720968384235,0.49114028,3196.2,3196.1,6.88111668]
[1720968385372,0.49114028,3196.2,3196.1,9.38416668]
[1720968386984,0.49114028,3196.2,3196.1,9.93416668]
[1720968392276,0.49114028,3196.2,3196.1,17.00160968]
[1720968392599,2.3201,3197.1,3197.0,2.50234]
[1720968392878,2.3201,3197.1,3197.0,3.29434]
[1720968393208,0.49099925,3197.3,3197.2,2.50218]
[1720968393347,0.1148461,3197.6,3197.5,2.50195]
[1720968393542,0.1148461,3197.6,3197.5,6.85688072]
[1720968393789,0.1148461,3197.6,3197.5,3.500395]
[1720968393957,0.1148461,3197.6,3197.5,3.792]
[1720968394353,0.1148461,3197.6,3197.4,3.0]
[1720968394681,0.1148461,3197.6,3196.9,6.75418765]
[1720968394883,2.36458945,3197.5,3197.0,3.0]
[1720968395071,2.36458945,3197.5,3196.5,3.08]
[1720968395072,0.792,3197.2,3196.5,3.08]
[1720968395299,2.66304536,3197.5,3196.6,0.792]
[1720968395300,2.3201,3197.1,3196.6,0.792]
[1720968395746,2.3201,3197.1,3196.5,3.08]
[1720968395947,2.3201,3197.1,3196.7,0.792]
[1720968396146,2.3201,3197.1,3197.0,0.792]
[1720968397350,2.3201,3197.5,3197.0,0.792]
[1720968397761,0.04441385,3197.4,3197.0,0.792]
[1720968399684,0.04441385,3197.4,3197.2,0.792]
[1720968399981,2.3201,3197.5,3197.2,0.792]
[1720968400186,2.3201,3197.5,3197.0,3.29433]
[1720968400355,2.3201,3197.5,3197.0,2.50233]
[1720968400697,0.04444953,3197.4,3197.0,2.50233]
[1720968400905,0.1148461,3197.6,3197.1,2.5022]
[1720968401055,0.1148461,3197.6,3197.2,2.50218]
[1720968401249,0.1148461,3197.6,3197.4,2.50199]
[1720968401452,0.04288318,3197.5,3197.4,2.50199]
[1720968402554,0.04288318,3197.5,3197.0,3.002803]
[1720968402889,0.1148461,3197.6,3197.1,5.8025203]
[1720968403090,0.1148461,3197.6,3197.1,3.3525203]
[1720968403253,0.1148461,3197.6,3197.2,3.0]
[1720968403573,0.1148461,3197.6,3197.4,2.50202]
[1720968404079,0.04289916,3197.5,3197.4,2.45202]
[1720968404258,0.04289916,3197.5,3197.4,3.247438]
[1720968404459,0.04289916,3197.5,3197.4,6.3099787]
[1720968404771,0.1148461,3197.6,3197.4,6.247438]
[1720968405286,0.1148461,3197.6,3197.4,3.795418]
[1720968405450,0.04291583,3197.5,3197.4,6.297448]
[1720968407001,0.1148461,3197.6,3197.4,3.795418]
[1720968407370,0.1148461,3197.6,3197.4,6.297448]
[1720968407568,0.1148461,3197.6,3197.5,0.6297448]
[1720968408294,0.1148461,3197.6,3197.5,6.1316948]
[1720968408995,0.1148461,3197.6,3197.5,9.1836448]
[1720968409896,0.1148461,3197.6,3197.5,3.6297448]
[1720968411385,2.3518,3197.5,3197.4,3.0]
[1720968411583,2.3518,3197.5,3197.3,5.50209]
[1720968412082,2.3518,3197.5,3197.3,3.0]
[1720968412406,0.1148461,3197.6,3197.3,3.0]
[1720968412566,0.1148461,3197.6,3197.3,5.5646435]
[1720968412767,0.1148461,3197.6,3197.4,0.55646435]
[1720968413190,0.04293114,3197.5,3197.4,0.55646435]
[1720968417707,0.04293114,3197.5,3197.3,2.975]
[1720968417921,0.1148461,3197.6,3197.1,5.8824903]
[1720968418216,0.1148461,3197.6,3197.1,2.8024903]
[1720968418379,0.1148461,3197.6,3197.2,2.50218]
[1720968420086,0.1148461,3197.6,3197.3,5.5021]
[1720968420410,0.1148461,3197.6,3197.5,3.29195]
[1720968420707,0.1148461,3197.6,3197.5,6.29195]
[1720968422013,0.1148461,3197.6,3197.5,9.40643713]
[1720968422189,0.1148461,3197.6,3197.5,9.3439]
[1720968422375,0.1148461,3197.6,3197.5,8.5539]
[1720968422707,0.1148461,3197.6,3197.5,9.4893328]
[1720968426600,0.1148461,3197.6,3197.5,6.4373828]
[1720968426896,0.1148461,3197.6,3197.5,5.50195]
[1720968427102,0.1148461,3197.6,3197.5,8.0039]
[1720968427911,0.1148461,3197.6,3197.5,5.50195]
[1720968429287,0.1148461,3197.6,3197.5,8.0039]
[1720968429489,0.1148461,3197.6,3197.5,8.5539]
[1720968429687,0.1148461,3197.6,3197.5,9.40929]
[1720968430138,0.1148461,3197.6,3197.5,11.90159]
[1720968430286,0.1148461,3197.6,3197.5,14.40354]
[1720968431226,0.1148461,3197.6,3197.5,16.28854]
[1720968433933,0.1148461,3197.6,3197.5,14.40354]
[1720968434499,0.1148461,3197.6,3197.5,8.85929]
[1720968435095,0.1148461,3197.6,3197.5,11.36124]
[1720968435623,0.1148461,3197.6,3197.5,8.85929]
[1720968436198,0.1148461,3197.6,3197.5,9.40929]
[1720968436938,0.1148461,3197.6,3197.5,6.35734]
[1720968437499,0.1148461,3197.6,3197.5,6.41987636]
[1720968438431,0.1148461,3197.6,3197.4,3.08]
[1720968438930,0.1148461,3197.6,3197.0,2.50234]
[1720968438931,0.04002862,3197.5,3197.0,2.50234]
[1720968439247,0.1148461,3197.6,3197.0,2.50234]
[1720968439818,0.1148461,3197.6,3197.4,2.50201]
[1720968440127,0.1148461,3197.6,3197.4,5.0665804]
[1720968440128,0.0398052,3197.5,3197.4,5.0665804]
[1720968440436,0.0398052,3197.5,3197.4,8.51069804]
[1720968440650,0.0398052,3197.5,3197.4,6.06069804]
[1720968440818,0.0398052,3197.5,3197.4,9.06069804]
[1720968441137,0.1148461,3197.6,3197.5,2.50195]
[1720968441356,0.1148461,3197.6,3197.5,5.50195]
[1720968441502,0.1148461,3197.6,3197.5,9.2099618]
[1720968441700,0.1148461,3197.6,3197.5,9.7599618]
[1720968447149,0.1148461,3197.6,3197.5,14.5239118]
[1720968447548,0.49078278,3198.5,3198.2,2.50139]
[1720968447739,0.49078278,3198.5,3198.3,3.0]
[1720968448967,0.49078278,3198.5,3198.3,5.50132]
[1720968449774,0.49078278,3198.5,3198.4,2.50125]
[1720968449928,0.49078278,3198.5,3198.3,6.301591]
[1720968450330,0.49078278,3198.5,3198.3,5.50132]
[1720968450565,0.49078278,3198.5,3198.3,3.0]
[1720968450770,0.49078278,3198.5,3198.2,5.50135]
[1720968451469,2.3079,3198.4,3198.2,5.50135]
[1720968451778,2.3079,3198.4,3198.2,3.0]
[1720968452071,2.3079,3198.4,3198.0,3.0]
[1720968452274,2.3079,3198.4,3198.0,5.50154]
[1720968453056,2.3079,3198.4,3198.0,6.30186]
[1720968453369,0.49078278,3198.5,3198.0,6.30186]
[1720968453544,0.49078278,3198.5,3198.0,6.3643857]
[1720968454478,0.49078278,3198.5,3198.2,2.50135]
[1720968454653,0.49078278,3198.5,3198.3,3.0]
[1720968454849,0.0406175,3198.4,3198.3,3.0]
[1720968455263,0.49078278,3198.5,3198.3,3.550135]
[1720968455439,0.49078278,3198.5,3198.3,6.051445]
[1720968458277,0.49078278,3198.5,3198.4,2.56377558]
[1720968458462,0.49078278,3198.5,3198.4,5.50125]
[1720968458638,0.53158486,3198.5,3198.4,3.0]
[1720968458832,0.53158486,3198.5,3198.4,5.50125]
[1720968459033,0.53158486,3198.5,3198.4,6.1063885]
[1720968461156,0.53158486,3198.5,3198.4,6.0063885]
[1720968462240,0.53158486,3198.5,3198.4,6.06891279]
[1720968462441,0.53158486,3198.5,3198.4,9.12016279]
[1720968462958,0.49078278,3198.5,3198.4,9.0576385]
[1720968463164,2.3079,3198.9,3198.8,2.50093]
[1720968463458,2.8388119,3198.9,3198.8,5.50093]
[1720968463890,2.8388119,3198.9,3198.8,3.0]
[1720968464074,2.8388119,3198.9,3198.6,3.0]
[1720968465644,2.8388119,3198.9,3198.6,5.50108]
[1720968466192,2.8388119,3198.9,3198.8,2.50093]
[1720968466342,2.8388119,3198.9,3198.8,5.50093]
[1720968466659,2.79863015,3198.9,3198.8,3.0]
[1720968466988,2.83870683,3198.9,3198.7,3.0]
[1720968468670,2.83870683,3198.9,3198.6,3.0]
[1720968468894,2.79863015,3198.9,3198.6,3.0]
[1720968469371,0.04011244,3198.8,3198.6,3.0]
[1720968469575,2.3404,3198.7,3198.0,6.75418765]
[1720968469883,2.3404,3198.5,3198.0,6.75418765]
[1720968470186,2.3404,3198.5,3197.8,2.50171]
[1720968470540,2.3404,3198.5,3197.7,2.50179]
[1720968471044,2.3404,3198.5,3197.8,5.50171]
[1720968472893,2.3404,3198.5,3197.9,2.50162]
[1720968473076,2.3404,3198.5,3198.0,3.0]
[1720968473996,2.3404,3198.5,3197.8,3.0]
[1720968474196,0.23404,3198.4,3197.8,3.0]
[1720968474901,2.3404,3198.5,3197.7,5.50179]
[1720968475055,2.3404,3198.5,3197.7,3.0]
[1720968475802,2.3404,3198.5,3197.8,2.5017]
[1720968475985,2.3404,3198.5,3197.9,3.0]
[1720968476515,0.04592032,3198.4,3198.0,3.0]
[1720968476717,0.04592032,3198.4,3197.6,9.25599765]
[1720968476718,2.4857,3198.3,3197.7,3.0]
[1720968477015,2.4857,3198.3,3197.7,5.50174]
[1720968479132,2.4857,3198.3,3197.7,3.0]
[1720968479681,2.4857,3198.3,3197.7,5.50179]
[1720968480324,2.4857,3198.3,3197.7,6.97757677]
[1720968482628,2.4857,3198.3,3197.7,3.0]
[1720968492184,2.4857,3198.3,3197.7,3.79]
[1720968493209,2.4857,3198.3,3197.7,3.0]
[1720968493411,4.454885,3198.3,3197.7,3.0]
[1720968493589,2.52872323,3198.2,3197.7,3.0]
[1720968493789,2.93909082,3198.2,3197.7,3.0]
[1720968494201,2.93909082,3198.2,3197.5,3.29188]
[1720968494202,0.03934441,3198.1,3197.6,3.0]
[1720968494553,2.4893,3198.1,3197.4,20.235]
[1720968494700,2.4893,3198.1,3197.4,0.79]
[1720968494899,2.4893,3197.9,3197.3,9.25621765]
[1720968495301,0.03908927,3197.8,3197.3,9.25621765]
[1720968496409,2.4893,3197.7,3197.4,3.0]
[1720968496625,0.03910346,3197.6,3197.4,3.0]
[1720968497022,2.4893,3197.7,3197.4,3.0]
[1720968497402,2.73823,3197.7,3197.3,6.75418765]
[1720968497634,0.08497026,3197.6,3197.3,6.75418765]
[1720968498720,2.4893,3197.5,3196.4,6.75418765]
[1720968499046,2.4893,3197.3,3196.4,10.04699765]
[1720968499249,0.03873409,3197.2,3196.5,1.31269977]
[1720968499554,2.4893,3197.3,3196.5,1.31269977]
[1720968500050,0.03869389,3197.2,3196.5,1.31269977]
[1720968500346,0.03869389,3197.2,3196.5,4.31269977]
[1720968500647,2.4893,3197.3,3196.5,4.31269977]
[1720968500851,2.52795414,3197.2,3196.5,4.31269977]
[1720968501054,2.4893,3197.2,3196.6,1.60088869]
[1720968501227,2.4893,3197.2,3196.6,4.60088869]
[1720968502248,2.4893,3197.2,3196.6,3.81088869]
[1720968502553,2.4893,3197.2,3196.7,3.0]
[1720968502756,2.4893,3197.2,3196.6,0.81088869]
[1720968507853,2.4893,3197.2,3196.5,4.31269977]
[1720968508058,2.3319,3197.0,3196.1,19.08418765]
[1720968508229,2.3319,3197.3,3196.1,19.08418765]
[1720968508425,2.3319,3196.9,3196.1,19.08418765]
[1720968509444,2.3319,3196.9,3196.2,3.0]
[1720968511750,2.3319,3196.9,3196.1,19.08418765]
[1720968511751,2.37782032,3196.9,3196.1,6.75418765]
[1720968517167,2.3972,3196.7,3196.1,6.75418765]
[1720968517382,2.3972,3196.5,3195.8,3.0]
[1720968517690,2.3972,3196.3,3195.8,3.0]
[1720968519687,2.3972,3197.1,3195.8,3.0]
[1720968519888,2.3972,3197.1,3196.0,2.50305]
[1720968520054,2.3972,3197.1,3196.2,2.50296]
[1720968520256,2.3972,3197.1,3196.3,0.31911591]
[1720968520458,2.3972,3197.1,3196.4,2.50279]
[1720968520657,0.03818384,3197.0,3196.4,2.50279]
[1720968521396,0.03818384,3197.0,3196.4,0.06256373]
[1720968521689,0.32777551,3197.2,3196.5,2.50269]
[1720968521892,0.32777551,3197.2,3196.6,0.250269]
[1720968522091,0.32777551,3197.2,3196.6,3.250269]
[1720968522291,0.32777551,3197.2,3196.6,5.752909]
[1720968522971,0.32777551,3197.2,3196.6,3.250269]
[1720968523284,0.03840045,3197.1,3196.6,2.752919]
[1720968523455,0.32777551,3197.2,3196.7,0.5752919]
[1720968523657,0.03840045,3197.1,3196.7,0.5752919]
[1720968523858,0.49103736,3197.0,3196.7,0.5752919]
[1720968526571,2.88023736,3197.0,3196.5,3.0]
[1720968526788,2.88023736,3197.0,3196.4,3.0]
[1720968527187,0.03812133,3196.9,3196.4,3.0]
[1720968527397,0.03812133,3196.9,3196.1,3.0]
[1720968527708,2.88023736,3197.0,3196.2,3.053209]
[1720968527907,2.88023736,3197.0,3196.3,3.0]
[1720968529881,2.88023736,3197.0,3196.0,3.0]
[1720968530394,2.88023736,3197.0,3196.0,5.5031]
[1720968532514,2.88023736,3197.0,3196.2,0.791]
[1720968532719,2.88023736,3197.0,3196.1,0.791]
[1720968532720,3.28013865,3197.0,3196.1,0.791]
[1720968534926,2.3011,3196.7,3195.7,6.75418765]
[1720968535241,2.3011,3196.4,3195.7,6.75418765]
[1720968536484,2.3011,3196.4,3195.8,3.0]
[1720968541311,0.04592032,3196.3,3195.8,3.0]
[1720968541519,2.72794274,3196.4,3195.8,3.0]
[1720968542241,0.08370232,3196.3,3195.8,3.0]
[1720968542405,2.72794274,3196.4,3195.8,3.0]
[1720968543744,0.04592032,3196.3,3195.7,6.75418765]
[1720968544038,0.27738631,3196.3,3195.7,6.75418765]
[1720968544285,2.3011,3196.2,3195.7,6.75418765]
[1720968544553,2.3011,3196.2,3195.4,3.0]
[1720968545166,0.03765172,3196.1,3195.4,3.0]
[1720968545615,2.3011,3196.2,3195.4,3.0]
[1720968545822,0.03765172,3196.1,3195.4,4.22578477]
[1720968546022,2.3011,3196.2,3195.4,4.22578477]
[1720968548131,2.3011,3196.2,3195.4,6.72937477]
[1720968551631,1.96890142,3196.5,3195.4,4.22578477]
[1720968551833,0.03778117,3196.4,3195.7,2.50328]
[1720968553369,0.03778117,3196.4,3195.7,3.003959]
[1720968555778,0.03778117,3196.4,3195.9,2.5032]
[1720968555988,0.03778117,3196.4,3196.0,2.50308]
[1720968556292,0.03778117,3196.4,3196.3,8.07318]
[1720968556442,2.4763,3197.2,3196.3,10.177907]
[1720968556768,2.4763,3197.2,3196.8,0.791]
[1720968556769,0.03816391,3196.9,3196.8,0.791]
[1720968557270,0.03816391,3196.9,3196.8,3.2935]
[1720968561879,0.32778308,3197.4,3196.8,3.2935]
[1720968562048,0.03625987,3196.9,3196.8,3.87936769]
[1720968562250,0.32778308,3197.4,3196.8,3.87936769]
[1720968562573,0.03625987,3196.9,3196.8,3.87936769]
[1720968562981,0.32778308,3197.4,3196.8,3.87936769]
[1720968563194,0.32778308,3197.4,3196.9,5.00484]
[1720968563481,0.32778308,3197.4,3196.9,5.64301077]
[1720968565249,2.4763,3197.5,3196.9,8.64301077]
[1720968565784,2.4763,3197.5,3196.9,6.14059077]
[1720968567097,0.52739768,3197.0,3196.9,6.14059077]
[1720968567252,0.49103736,3197.0,3196.9,6.14059077]
[1720968568089,0.52739768,3197.0,3196.9,6.14059077]
[1720968568272,0.49103736,3197.0,3196.9,6.14059077]
[1720968568457,0.52739768,3197.0,3196.9,6.14059077]
[1720968568888,0.49103736,3197.0,3196.9,6.14059077]
[1720968569220,0.49103736,3197.0,3196.9,3.63817077]
[1720968569409,0.49103736,3197.0,3196.9,0.63817077]
[1720968569585,0.49103736,3197.0,3196.9,3.63817077]
[1720968573321,0.49103736,3197.0,3196.9,3.0]
[1720968575024,2.4733,3196.9,3196.6,3.0]
[1720968581100,2.4733,3196.9,3196.5,0.791]
[1720968582328,2.4733,3196.9,3196.7,0.791]
[1720968582985,0.49103736,3197.0,3196.9,2.50242]
[1720968583191,0.49103736,3197.0,3196.9,8.79584]
[1720968583432,0.03577897,3197.0,3196.9,9.34584]
[1720968583602,2.96424304,3197.9,3197.3,2.5021]
[1720968583927,0.03453714,3197.8,3197.5,0.791]
[1720968584125,0.03453714,3197.8,3197.7,0.791]
[1720968584328,2.96424304,3197.9,3197.7,0.791]
[1720968584517,0.03324381,3197.8,3197.7,0.791]
[1720968584725,2.96424304,3197.9,3197.7,0.791]
[1720968584912,2.96424304,3197.9,3197.5,0.791]
[1720968585109,0.03320063,3197.8,3197.5,2.83748633]
[1720968585327,0.03320063,3197.8,3197.7,3.29279]
[1720968585842,2.96419554,3198.3,3197.7,3.29279]
[1720968586042,2.96419554,3198.3,3197.7,0.791]
[1720968586252,0.0328532,3198.2,3197.5,3.29293]
[1720968586599,2.96419554,3198.3,3197.5,3.29293]
[1720968587138,0.03163805,3198.2,3197.5,3.29293]
[1720968587342,2.96419554,3198.3,3197.5,3.29293]
[1720968587517,0.0322911,3198.2,3197.5,3.29293]
[1720968588212,0.0322911,3198.2,3197.3,3.29309]
[1720968588441,2.3074,3198.1,3197.2,0.791]
[1720968588600,0.04592032,3198.0,3197.2,0.791]
[1720968588797,0.04592032,3198.0,3197.2,3.29318]
[1720968589004,0.36035235,3198.0,3197.2,3.29318]
[1720968589227,0.31443203,3198.0,3197.2,0.791]
[1720968589562,2.3074,3197.9,3197.2,0.791]
[1720968590427,2.35332032,3197.9,3197.2,0.791]
[1720968590827,2.3074,3197.9,3197.2,0.791]
[1720968592342,2.3074,3197.9,3197.4,0.791]
[1720968592542,0.0323391,3197.8,3197.4,0.791]
[1720968594246,0.0323391,3197.8,3197.2,0.791]
[1720968594763,2.3074,3197.9,3197.2,0.791]
[1720968594968,0.27666032,3197.8,3197.2,0.791]
[1720968595478,2.2857,3197.7,3197.2,0.791]
[1720968598508,2.2857,3197.7,3197.2,3.29318]
[1720968600089,2.2857,3197.7,3197.4,0.791]
[1720968600461,0.03163822,3197.6,3197.4,0.791]
[1720968601692,2.2857,3197.7,3197.4,0.791]
[1720968601985,2.2857,3197.7,3197.4,3.29295]
[1720968602486,2.2857,3198.1,3197.6,0.791]
[1720968602686,2.2857,3198.1,3197.8,0.791]
[1720968602985,0.03058971,3198.0,3197.8,0.791]
[1720968604876,0.03058971,3198.0,3197.7,2.50178]
[1720968607459,0.03058971,3198.0,3197.8,0.791]
[1720968608094,0.03058971,3198.0,3197.8,3.621978]
[1720968608396,0.03128704,3197.9,3197.8,3.621978]
[1720968608790,0.49089554,3198.3,3197.8,3.621978]
[1720968608998,0.49089554,3198.3,3197.9,2.50163]
[1720968610177,0.49089554,3198.3,3198.0,2.50156]
[1720968610542,0.49089554,3198.3,3198.0,3.29256]
[1720968611315,0.03155053,3198.2,3198.1,2.50148]
[1720968611479,0.49089554,3198.3,3198.1,3.29248]
[1720968611677,2.3021,3198.7,3198.2,0.329248]
[1720968611882,2.3021,3198.7,3198.2,2.5014]
[1720968612110,2.79290802,3198.7,3198.2,2.5014]
[1720968612309,2.79290802,3198.7,3198.4,0.791]
[1720968614286,0.49080802,3198.7,3198.6,3.29209]
[1720968614480,0.025,3198.8,3198.7,2.50101]
[1720968614727,0.025,3198.8,3198.7,7.31312]
[1720968614929,0.025,3198.8,3198.7,10.86312]
[1720968616000,1.96712619,3200.3,3199.4,5.00092]
[1720968616001,0.4906571,3199.5,3199.4,5.00092]
[1720968616202,2.4317,3200.3,3199.7,2.5002]
[1720968616382,2.08197229,3200.7,3199.8,0.06249524]
[1720968616383,0.1148461,3200.7,3199.8,0.06249524]
[1720968616727,0.02916762,3200.6,3199.8,2.50008]
[1720968617016,2.4317,3200.5,3199.4,7.25427965]
[1720968617212,2.4317,3200.5,3199.4,6.75418765]
[1720968617416,0.04592032,3200.4,3199.4,7.42960642]
[1720968617579,2.68227493,3200.5,3199.4,6.75418765]
[1720968618099,0.25465461,3200.5,3199.4,6.75418765]
[1720968618307,2.21842237,3200.5,3199.1,19.08418765]
[1720968618506,2.47527516,3200.4,3199.1,19.08418765]
[1720968618707,0.46936975,3200.3,3199.1,19.08418765]
[1720968618883,0.03027516,3200.4,3199.1,21.58484765]
[1720968619083,2.21842237,3200.5,3199.1,21.58484765]
[1720968619379,0.030237,3200.4,3199.2,0.06251017]
[1720968619578,0.030237,3200.4,3199.2,2.50055]
[1720968620123,0.030237,3200.4,3199.6,2.50029]
[1720968620304,0.030237,3200.4,3199.7,0.250029]
[1720968620496,2.4317,3200.6,3199.3,7.3955]
[1720968621030,2.4317,3200.6,3199.6,2.5003]
[1720968621192,2.4317,3200.6,3199.9,2.50004]
[1720968621720,2.4317,3200.6,3200.2,2.49982]
[1720968622214,0.1148461,3200.7,3199.8,0.06248982]
[1720968622381,0.1148461,3200.7,3199.6,2.5003]
[1720968622583,0.1148461,3200.7,3199.7,3.0]
[1720968622810,2.4317,3200.6,3199.7,3.0]
[1720968622985,2.4317,3200.6,3199.8,2.50015]
[1720968623192,2.4317,3200.6,3199.9,3.0]
[1720968623405,2.4317,3200.6,3200.0,0.550014]
[1720968623591,0.1148461,3200.7,3200.2,2.49982]
[1720968623793,0.1148461,3200.7,3200.5,2.4996]
[1720968623998,0.1148461,3200.7,3200.6,2.49953]
[1720968624399,0.1148461,3200.7,3200.6,5.49953]
[1720968624719,0.1148461,3200.7,3200.6,4.099913]
[1720968625019,0.1148461,3200.7,3200.6,3.0]
[1720968625316,0.1148461,3200.7,3200.6,5.49953]
[1720968626219,0.1148461,3200.7,3200.6,8.54906]
[1720968626608,0.1148461,3200.7,3200.6,5.49953]
[1720968626788,0.1148461,3200.7,3200.6,2.49953]
[1720968626985,0.1148461,3200.7,3200.6,11.064643]
[1720968627208,2.2986,3202.6,3201.2,2.49901]